[Event "Titled Tuesday Blitz April 05 Early 2022"]
[White "Al-Tarboush, Ward"]
[Black "Goldin, Roman"]
[WhiteFideId "7601450"]
[BlackFideId "2803860"]
[WhiteElo "2276"]
[BlackElo "2312"]
[Result "0-1"]
[Round "03"]
[TimeControl "180+1"]
[Date "2022.04.05"]
[WhiteClock "0:01:35"]
[BlackClock "0:00:47"]

1. e4 {[%clk 0:02:59]}  Nc6 {[%clk 0:02:56]} 2. Nf3 {[%clk 0:02:58]}  e5 {[%clk 0:02:54]} 3. Bb5 {[%clk 0:02:58]}  a6 {[%clk 0:02:50]} 4. Ba4 {[%clk 0:02:58]}  d6 {[%clk 0:02:50]} 5. O-O {[%clk 0:02:58]}  Ne7 {[%clk 0:02:46]} 6. c4 {[%clk 0:02:57]}  Bg4 {[%clk 0:02:42]} 7. h3 {[%clk 0:02:56]}  Bxf3 {[%clk 0:02:38]} 8. Qxf3 {[%clk 0:02:56]}  Rb8 {[%clk 0:02:15]} 9. Nc3 {[%clk 0:02:54]}  Ng6 {[%clk 0:02:09]} 10. d3 {[%clk 0:02:51]}  Be7 {[%clk 0:02:08]} 11. Be3 {[%clk 0:02:49]}  O-O {[%clk 0:02:08]} 12. g3 {[%clk 0:02:49]}  Nd4 {[%clk 0:02:01]} 13. Bxd4 {[%clk 0:02:48]}  exd4 {[%clk 0:02:00]} 14. Nd5 {[%clk 0:02:49]}  c6 {[%clk 0:01:59]} 15. Nf4 {[%clk 0:02:49]}  Ne5 {[%clk 0:01:58]} 16. Qe2 {[%clk 0:02:47]}  Qd7 {[%clk 0:01:47]} 17. Bc2 {[%clk 0:02:38]}  Bg5 {[%clk 0:01:45]} 18. Kg2 {[%clk 0:02:37]}  Bxf4 {[%clk 0:01:43]} 19. gxf4 {[%clk 0:02:38]}  Ng6 {[%clk 0:01:43]} 20. Kg3 {[%clk 0:02:37]}  f5 {[%clk 0:01:41]} 21. f3 {[%clk 0:02:36]}  Qe7 {[%clk 0:01:37]} 22. Kh2 {[%clk 0:02:32]}  Nxf4 {[%clk 0:01:33]} 23. Qf2 {[%clk 0:02:32]}  fxe4 {[%clk 0:01:19]} 24. fxe4 {[%clk 0:02:32]}  Nxh3 {[%clk 0:00:58]} 25. Qg3 {[%clk 0:02:28]}  Ng5 {[%clk 0:00:56]} 26. Rae1 {[%clk 0:02:16]}  Nf7 {[%clk 0:00:54]} 27. Bd1 {[%clk 0:02:12]}  Ne5 {[%clk 0:00:54]} 28. Rg1 {[%clk 0:02:11]}  g6 {[%clk 0:00:52]} 29. Rg2 {[%clk 0:01:59]}  Rf6 {[%clk 0:00:52]} 30. Rf2 {[%clk 0:01:39]}  Rxf2+ {[%clk 0:00:48]} 31. Qxf2 {[%clk 0:01:40]}  Nxd3 {[%clk 0:00:48]} 32. Qg3 {[%clk 0:01:35]}  Nxe1 {[%clk 0:00:47]} 0-1


[Site "https://www.chess.com"]

[Event "Titled Tuesday Blitz April 05 Early 2022"]
[White "Andreikin, Dmitry"]
[Black "Murzin, Volodar"]
[WhiteFideId "4158814"]
[BlackFideId "44155573"]
[WhiteElo "2736"]
[BlackElo "2585"]
[Result "*"]
[Round "03"]
[TimeControl "180+1"]
[Date "2022.04.05"]
[WhiteClock "0:01:30"]
[BlackClock "0:01:13"]

1. d4 {[%clk 0:03:00]}  d5 {[%clk 0:02:58]} 2. Nf3 {[%clk 0:03:01]}  Nf6 {[%clk 0:02:58]} 3. c4 {[%clk 0:03:02]}  c6 {[%clk 0:02:58]} 4. Qc2 {[%clk 0:03:01]}  e6 {[%clk 0:02:57]} 5. Nbd2 {[%clk 0:03:00]}  Nbd7 {[%clk 0:02:57]} 6. b3 {[%clk 0:02:58]}  Bd6 {[%clk 0:02:51]} 7. Bb2 {[%clk 0:02:58]}  O-O {[%clk 0:02:52]} 8. e3 {[%clk 0:02:53]}  Qe7 {[%clk 0:02:52]} 9. Ne5 {[%clk 0:02:51]}  Ba3 {[%clk 0:02:29]} 10. Bxa3 {[%clk 0:02:48]}  Qxa3 {[%clk 0:02:30]} 11. Bd3 {[%clk 0:02:48]}  h6 {[%clk 0:02:07]} 12. f4 {[%clk 0:02:43]}  c5 {[%clk 0:02:02]} 13. O-O {[%clk 0:02:39]}  cxd4 {[%clk 0:01:54]} 14. exd4 {[%clk 0:02:40]}  Rd8 {[%clk 0:01:48]} 15. Rae1 {[%clk 0:02:29]}  dxc4 {[%clk 0:01:27]} 16. bxc4 {[%clk 0:02:17]}  b6 {[%clk 0:01:21]} 17. Nc6 {[%clk 0:01:30]}  Re8 {[%clk 0:01:13]} 18. c5 {[%clk 0:01:30]} *


[Site "https://www.chess.com"]

[Event "Titled Tuesday Blitz April 05 Early 2022"]
[White "Arabidze, Meri"]
[Black "Tsyhanchuk, Stanislav"]
[WhiteFideId "13604040"]
[BlackFideId "13505130"]
[WhiteElo "2335"]
[BlackElo "2078"]
[Result "1-0"]
[Round "03"]
[TimeControl "180+1"]
[Date "2022.04.05"]
[WhiteClock "0:00:05"]
[BlackClock "0:00:01"]

1. d4 {[%clk 0:03:00]}  d5 {[%clk 0:02:57]} 2. Nf3 {[%clk 0:03:01]}  Nf6 {[%clk 0:02:56]} 3. Bf4 {[%clk 0:02:59]}  c5 {[%clk 0:02:57]} 4. e3 {[%clk 0:02:59]}  Nc6 {[%clk 0:02:57]} 5. c3 {[%clk 0:02:59]}  Qb6 {[%clk 0:02:58]} 6. Qb3 {[%clk 0:02:58]}  c4 {[%clk 0:02:58]} 7. Qc2 {[%clk 0:02:58]}  Bf5 {[%clk 0:02:58]} 8. Qc1 {[%clk 0:02:58]}  e6 {[%clk 0:02:58]} 9. h3 {[%clk 0:02:57]}  h6 {[%clk 0:02:59]} 10. Be2 {[%clk 0:02:57]}  Be7 {[%clk 0:02:58]} 11. Nbd2 {[%clk 0:02:55]}  O-O {[%clk 0:02:58]} 12. O-O {[%clk 0:02:55]}  Qd8 {[%clk 0:02:59]} 13. Bd1 {[%clk 0:02:52]}  b5 {[%clk 0:02:55]} 14. Bc2 {[%clk 0:02:50]}  Qb6 {[%clk 0:02:53]} 15. Bxf5 {[%clk 0:02:48]}  exf5 {[%clk 0:02:54]} 16. Qc2 {[%clk 0:02:47]}  Ne4 {[%clk 0:02:54]} 17. Ne5 {[%clk 0:02:41]}  Nxe5 {[%clk 0:02:46]} 18. Bxe5 {[%clk 0:02:42]}  Bd6 {[%clk 0:02:46]} 19. Bxd6 {[%clk 0:02:33]}  Qxd6 {[%clk 0:02:47]} 20. f3 {[%clk 0:02:18]}  Ng3 {[%clk 0:02:46]} 21. Rfe1 {[%clk 0:02:17]}  Rfe8 {[%clk 0:02:46]} 22. b3 {[%clk 0:02:11]}  a5 {[%clk 0:02:45]} 23. a4 {[%clk 0:02:06]}  cxb3 {[%clk 0:02:26]} 24. Nxb3 {[%clk 0:02:07]}  b4 {[%clk 0:02:20]} 25. Nc5 {[%clk 0:02:04]}  Rab8 {[%clk 0:02:13]} 26. Rac1 {[%clk 0:01:37]}  f4 {[%clk 0:01:55]} 27. e4 {[%clk 0:01:28]}  dxe4 {[%clk 0:01:47]} 28. fxe4 {[%clk 0:01:15]}  bxc3 {[%clk 0:01:31]} 29. Qxc3 {[%clk 0:01:16]}  Rb4 {[%clk 0:01:30]} 30. Rcd1 {[%clk 0:01:17]}  Rd8 {[%clk 0:01:26]} 31. e5 {[%clk 0:01:02]}  Qd5 {[%clk 0:01:24]} 32. e6 {[%clk 0:01:03]}  Rc4 {[%clk 0:00:19]} 33. Qxa5 {[%clk 0:00:36]}  Rxd4 {[%clk 0:00:19]} 34. Rxd4 {[%clk 0:00:21]}  Qxd4+ {[%clk 0:00:19]} 35. Kh2 {[%clk 0:00:22]}  fxe6 {[%clk 0:00:17]} 36. Nxe6 {[%clk 0:00:21]}  Qf2 {[%clk 0:00:13]} 37. Qxd8+ {[%clk 0:00:21]}  Kh7 {[%clk 0:00:13]} 38. Nf8+ {[%clk 0:00:21]}  Kh8 {[%clk 0:00:13]} 39. Qd1 {[%clk 0:00:10]}  Nf5 {[%clk 0:00:05]} 40. Ng6+ {[%clk 0:00:07]}  Kh7 {[%clk 0:00:05]} 41. Ne5 {[%clk 0:00:05]}  Ne3 {[%clk 0:00:04]} 42. Qe2 {[%clk 0:00:05]}  Qg3+ {[%clk 0:00:03]} 43. Kh1 {[%clk 0:00:05]}  f3 {[%clk 0:00:03]} 44. Nxf3 {[%clk 0:00:05]}  Nf5 {[%clk 0:00:02]} 45. Qc2 {[%clk 0:00:05]}  Qf4 {[%clk 0:00:01]} 46. Rf1 {[%clk 0:00:05]}  g6 {[%clk 0:00:01]} 47. Kg1 {[%clk 0:00:05]}  Qe3+ {[%clk 0:00:01]} 48. Qf2 {[%clk 0:00:05]} 1-0


[Site "https://www.chess.com"]

[Event "Titled Tuesday Blitz April 05 Early 2022"]
[White "Bachmann, Axel"]
[Black "Cagara, Paulina"]
[WhiteFideId "3700488"]
[BlackFideId "1124870"]
[WhiteElo "2587"]
[BlackElo "1780"]
[Result "1/2-1/2"]
[Round "03"]
[TimeControl "180+1"]
[Date "2022.04.05"]
[WhiteClock "0:00:01"]
[BlackClock "0:00:07"]

1. d4 {[%clk 0:02:57]}  f5 {[%clk 0:02:59]} 2. g3 {[%clk 0:02:54]}  g6 {[%clk 0:02:57]} 3. Nf3 {[%clk 0:02:55]}  Bg7 {[%clk 0:02:57]} 4. b3 {[%clk 0:02:55]}  Nf6 {[%clk 0:02:57]} 5. Bb2 {[%clk 0:02:56]}  d6 {[%clk 0:02:58]} 6. Bg2 {[%clk 0:02:56]}  O-O {[%clk 0:02:57]} 7. O-O {[%clk 0:02:57]}  Qe8 {[%clk 0:02:58]} 8. Nbd2 {[%clk 0:02:55]}  Nbd7 {[%clk 0:02:53]} 9. Re1 {[%clk 0:02:43]}  e5 {[%clk 0:02:52]} 10. dxe5 {[%clk 0:02:41]}  dxe5 {[%clk 0:02:48]} 11. Ba3 {[%clk 0:02:36]}  c5 {[%clk 0:02:42]} 12. e4 {[%clk 0:02:36]}  f4 {[%clk 0:02:42]} 13. Nc4 {[%clk 0:02:31]}  Ng4 {[%clk 0:02:29]} 14. Qd5+ {[%clk 0:02:26]}  Kh8 {[%clk 0:02:28]} 15. Nd6 {[%clk 0:02:19]}  Qe7 {[%clk 0:02:21]} 16. Rad1 {[%clk 0:02:14]}  fxg3 {[%clk 0:02:09]} 17. hxg3 {[%clk 0:02:09]}  Ndf6 {[%clk 0:01:42]} 18. Qxc5 {[%clk 0:01:51]}  Nd7 {[%clk 0:01:10]} 19. Qd5 {[%clk 0:01:35]}  Ndf6 {[%clk 0:01:07]} 20. Nxc8 {[%clk 0:01:30]}  Qc7 {[%clk 0:00:45]} 21. Qc5 {[%clk 0:01:06]}  Qxc5 {[%clk 0:00:43]} 22. Bxc5 {[%clk 0:01:07]}  Rfxc8 {[%clk 0:00:43]} 23. Bd6 {[%clk 0:00:54]}  Rxc2 {[%clk 0:00:42]} 24. Nxe5 {[%clk 0:00:44]}  Nxf2 {[%clk 0:00:39]} 25. Rc1 {[%clk 0:00:37]}  Rac8 {[%clk 0:00:35]} 26. Bf1 {[%clk 0:00:31]}  Rxc1 {[%clk 0:00:22]} 27. Kxf2 {[%clk 0:00:19]}  Rxe1 {[%clk 0:00:21]} 28. Kxe1 {[%clk 0:00:20]}  Nxe4 {[%clk 0:00:19]} 29. Nf7+ {[%clk 0:00:12]}  Kg8 {[%clk 0:00:19]} 30. Bc4 {[%clk 0:00:11]}  Rxc4 {[%clk 0:00:17]} 31. bxc4 {[%clk 0:00:10]}  Kxf7 {[%clk 0:00:17]} 32. Bb8 {[%clk 0:00:10]}  Ke7 {[%clk 0:00:17]} 33. Ke2 {[%clk 0:00:10]}  Kd7 {[%clk 0:00:17]} 34. Kd3 {[%clk 0:00:11]}  Nc5+ {[%clk 0:00:17]} 35. Ke3 {[%clk 0:00:09]}  Ne6 {[%clk 0:00:17]} 36. Bxa7 {[%clk 0:00:07]}  Kc7 {[%clk 0:00:16]} 37. Ke4 {[%clk 0:00:07]}  Kc6 {[%clk 0:00:16]} 38. Be3 {[%clk 0:00:07]}  b6 {[%clk 0:00:14]} 39. a4 {[%clk 0:00:07]}  Bf8 {[%clk 0:00:13]} 40. g4 {[%clk 0:00:07]}  Bc5 {[%clk 0:00:13]} 41. Bd2 {[%clk 0:00:07]}  Nd4 {[%clk 0:00:12]} 42. Bc3 {[%clk 0:00:07]}  Nb3 {[%clk 0:00:12]} 43. Bg7 {[%clk 0:00:05]}  Bb4 {[%clk 0:00:12]} 44. Kd3 {[%clk 0:00:05]}  Nc5+ {[%clk 0:00:12]} 45. Kc2 {[%clk 0:00:04]}  Nxa4 {[%clk 0:00:12]} 46. Kb3 {[%clk 0:00:04]}  Nc5+ {[%clk 0:00:10]} 47. Kxb4 {[%clk 0:00:04]}  Ne4 {[%clk 0:00:10]} 48. Be5 {[%clk 0:00:02]}  Nd6 {[%clk 0:00:10]} 49. Kc3 {[%clk 0:00:01]}  Ne4+ {[%clk 0:00:10]} 50. Kd4 {[%clk 0:00:02]}  Nc5 {[%clk 0:00:10]} 51. Bg3 {[%clk 0:00:02]}  Ne6+ {[%clk 0:00:09]} 52. Ke5 {[%clk 0:00:02]}  Nc5 {[%clk 0:00:09]} 53. Bf2 {[%clk 0:00:02]}  h5 {[%clk 0:00:08]} 54. gxh5 {[%clk 0:00:02]}  gxh5 {[%clk 0:00:08]} 55. Bh4 {[%clk 0:00:02]}  Nd3+ {[%clk 0:00:08]} 56. Kd4 {[%clk 0:00:02]}  Nf4 {[%clk 0:00:07]} 57. Bf6 {[%clk 0:00:01]}  b5 {[%clk 0:00:06]} 58. cxb5+ {[%clk 0:00:01]}  Kxb5 {[%clk 0:00:06]} 59. Ke4 {[%clk 0:00:02]}  Ng6 {[%clk 0:00:06]} 60. Kf5 {[%clk 0:00:02]}  h4 {[%clk 0:00:06]} 61. Kg4 {[%clk 0:00:02]}  h3 {[%clk 0:00:07]} 62. Kxh3 {[%clk 0:00:01]} 1/2-1/2


[Site "https://www.chess.com"]

[Event "Titled Tuesday Blitz April 05 Early 2022"]
[White "Bas Mas, Jose Joaquin"]
[Black "Ambartsumova, Karina"]
[WhiteFideId "22219064"]
[BlackFideId "4166299"]
[WhiteElo "2212"]
[BlackElo "2262"]
[Result "0-1"]
[Round "03"]
[TimeControl "180+1"]
[Date "2022.04.05"]
[WhiteClock "0:01:00"]
[BlackClock "0:00:22"]

1. e4 {[%clk 0:03:00]}  e5 {[%clk 0:02:58]} 2. Nc3 {[%clk 0:03:01]}  Nf6 {[%clk 0:02:52]} 3. g3 {[%clk 0:03:01]}  d5 {[%clk 0:02:51]} 4. exd5 {[%clk 0:03:02]}  Nxd5 {[%clk 0:02:51]} 5. Bg2 {[%clk 0:03:02]}  Nb6 {[%clk 0:02:45]} 6. d3 {[%clk 0:03:01]}  Be7 {[%clk 0:02:43]} 7. Nf3 {[%clk 0:03:01]}  Nc6 {[%clk 0:02:43]} 8. O-O {[%clk 0:03:01]}  O-O {[%clk 0:02:43]} 9. h3 {[%clk 0:03:01]}  Re8 {[%clk 0:02:43]} 10. Re1 {[%clk 0:03:02]}  Bf8 {[%clk 0:02:43]} 11. Bg5 {[%clk 0:03:01]}  f6 {[%clk 0:02:43]} 12. Be3 {[%clk 0:03:01]}  Be6 {[%clk 0:02:39]} 13. a4 {[%clk 0:03:00]}  Qd7 {[%clk 0:02:35]} 14. a5 {[%clk 0:03:00]}  Nd5 {[%clk 0:02:34]} 15. Nxd5 {[%clk 0:02:58]}  Bxd5 {[%clk 0:02:35]} 16. a6 {[%clk 0:02:54]}  b6 {[%clk 0:02:21]} 17. Kh2 {[%clk 0:02:54]}  Rad8 {[%clk 0:02:20]} 18. Qe2 {[%clk 0:02:44]}  Nd4 {[%clk 0:02:06]} 19. Bxd4 {[%clk 0:02:33]}  exd4 {[%clk 0:02:04]} 20. Qd2 {[%clk 0:02:30]}  c5 {[%clk 0:01:49]} 21. Rxe8 {[%clk 0:02:16]}  Rxe8 {[%clk 0:01:49]} 22. c4 {[%clk 0:02:13]}  dxc3 {[%clk 0:01:35]} 23. bxc3 {[%clk 0:02:13]}  Qc6 {[%clk 0:01:33]} 24. Ne1 {[%clk 0:02:07]}  Bd6 {[%clk 0:01:20]} 25. Bxd5+ {[%clk 0:02:00]}  Qxd5 {[%clk 0:01:20]} 26. Ng2 {[%clk 0:02:01]}  h5 {[%clk 0:01:01]} 27. Ne3 {[%clk 0:01:50]}  Qf3 {[%clk 0:00:58]} 28. Rg1 {[%clk 0:01:44]}  h4 {[%clk 0:00:52]} 29. Qa2+ {[%clk 0:01:19]}  Kh8 {[%clk 0:00:32]} 30. Qd5 {[%clk 0:01:04]}  Qxf2+ {[%clk 0:00:31]} 31. Rg2 {[%clk 0:01:00]}  Bxg3+ {[%clk 0:00:28]} 32. Kh1 {[%clk 0:01:00]}  Qxe3 {[%clk 0:00:22]} 33. Qh5+ {[%clk 0:01:00]}  Kg8 {[%clk 0:00:22]} 34. Qd5+ {[%clk 0:01:00]}  Qe6 {[%clk 0:00:22]} 0-1


[Site "https://www.chess.com"]

[Event "Titled Tuesday Blitz April 05 Early 2022"]
[White "Bettalli, Francesco"]
[Black "Madaminov, Mukhiddin"]
[WhiteFideId "2816453"]
[BlackFideId "14210703"]
[WhiteElo "2216"]
[BlackElo "1916"]
[Result "1-0"]
[Round "03"]
[TimeControl "180+1"]
[Date "2022.04.05"]
[WhiteClock "0:01:14"]
[BlackClock "0:00:57"]

1. d4 {[%clk 0:03:00]}  Nf6 {[%clk 0:03:00]} 2. Nc3 {[%clk 0:03:01]}  e6 {[%clk 0:03:00]} 3. Bf4 {[%clk 0:02:57]}  d5 {[%clk 0:03:00]} 4. Nb5 {[%clk 0:02:57]}  Na6 {[%clk 0:02:59]} 5. e3 {[%clk 0:02:55]}  c6 {[%clk 0:03:00]} 6. Nc3 {[%clk 0:02:55]}  Nc7 {[%clk 0:02:59]} 7. a3 {[%clk 0:02:53]}  Bd6 {[%clk 0:02:57]} 8. Nf3 {[%clk 0:02:52]}  O-O {[%clk 0:02:56]} 9. Bd3 {[%clk 0:02:52]}  c5 {[%clk 0:02:55]} 10. dxc5 {[%clk 0:02:51]}  Bxc5 {[%clk 0:02:56]} 11. O-O {[%clk 0:02:50]}  Bd6 {[%clk 0:02:55]} 12. Re1 {[%clk 0:02:49]}  b6 {[%clk 0:02:53]} 13. Ne5 {[%clk 0:02:48]}  Bb7 {[%clk 0:02:53]} 14. Rc1 {[%clk 0:02:44]}  Rc8 {[%clk 0:02:52]} 15. Ng4 {[%clk 0:02:38]}  Nxg4 {[%clk 0:02:49]} 16. Qxg4 {[%clk 0:02:39]}  f5 {[%clk 0:02:49]} 17. Qg3 {[%clk 0:02:36]}  Ne8 {[%clk 0:02:46]} 18. Nb5 {[%clk 0:02:34]}  Bb8 {[%clk 0:02:25]} 19. Nd4 {[%clk 0:02:17]}  Rf6 {[%clk 0:02:21]} 20. Bxb8 {[%clk 0:02:04]}  Rxb8 {[%clk 0:02:22]} 21. Qe5 {[%clk 0:02:02]}  Nc7 {[%clk 0:02:14]} 22. Red1 {[%clk 0:01:55]}  Rg6 {[%clk 0:02:12]} 23. g3 {[%clk 0:01:53]}  Qe7 {[%clk 0:02:07]} 24. b4 {[%clk 0:01:52]}  Rd8 {[%clk 0:02:05]} 25. Be2 {[%clk 0:01:48]}  Qd6 {[%clk 0:01:59]} 26. Qxd6 {[%clk 0:01:46]}  Rxd6 {[%clk 0:02:00]} 27. Bf3 {[%clk 0:01:46]}  Rf6 {[%clk 0:01:59]} 28. c4 {[%clk 0:01:46]}  e5 {[%clk 0:01:50]} 29. c5 {[%clk 0:01:45]}  Rd7 {[%clk 0:01:47]} 30. c6 {[%clk 0:01:42]}  Bxc6 {[%clk 0:01:43]} 31. Nxc6 {[%clk 0:01:41]}  e4 {[%clk 0:01:41]} 32. Be2 {[%clk 0:01:40]}  Ne6 {[%clk 0:01:37]} 33. Rxd5 {[%clk 0:01:36]}  Rc7 {[%clk 0:01:32]} 34. b5 {[%clk 0:01:32]}  Nc5 {[%clk 0:01:30]} 35. Bc4 {[%clk 0:01:30]}  h5 {[%clk 0:01:01]} 36. Rd7+ {[%clk 0:01:30]}  Kh7 {[%clk 0:01:01]} 37. Rxc7 {[%clk 0:01:30]}  Kh6 {[%clk 0:01:01]} 38. Ne5 {[%clk 0:01:28]}  h4 {[%clk 0:01:00]} 39. Nf7+ {[%clk 0:01:23]}  Kh5 {[%clk 0:01:00]} 40. Be2+ {[%clk 0:01:24]}  Kg6 {[%clk 0:01:00]} 41. Ne5+ {[%clk 0:01:23]}  Kh6 {[%clk 0:01:00]} 42. Rc8 {[%clk 0:01:23]}  Re6 {[%clk 0:00:56]} 43. Rh8+ {[%clk 0:01:23]}  Kg5 {[%clk 0:00:56]} 44. gxh4+ {[%clk 0:01:22]}  Kf6 {[%clk 0:00:57]} 45. Nc6 {[%clk 0:01:18]}  f4 {[%clk 0:00:57]} 46. Rf8+ {[%clk 0:01:18]}  Kg6 {[%clk 0:00:57]} 47. h5+ {[%clk 0:01:18]}  Kh7 {[%clk 0:00:57]} 48. exf4 {[%clk 0:01:17]}  e3 {[%clk 0:00:57]} 49. Rxc5 {[%clk 0:01:14]}  exf2+ {[%clk 0:00:54]} 50. Kxf2 {[%clk 0:01:13]}  Rxe2+ {[%clk 0:00:54]} 51. Kxe2 {[%clk 0:01:14]}  bxc5 {[%clk 0:00:54]} 52. Nxa7 {[%clk 0:01:13]}  c4 {[%clk 0:00:55]} 53. b6 {[%clk 0:01:13]}  c3 {[%clk 0:00:56]} 54. b7 {[%clk 0:01:13]}  c2 {[%clk 0:00:56]} 55. Rc8 {[%clk 0:01:13]}  c1=Q {[%clk 0:00:56]} 56. Rxc1 {[%clk 0:01:14]}  Kh6 {[%clk 0:00:55]} 57. b8=Q {[%clk 0:01:13]}  Kxh5 {[%clk 0:00:56]} 58. Qh8+ {[%clk 0:01:13]}  Kg4 {[%clk 0:00:56]} 59. Rg1+ {[%clk 0:01:14]}  Kf5 {[%clk 0:00:56]} 60. Qh5+ {[%clk 0:01:14]}  Ke4 {[%clk 0:00:57]} 61. Qe5# {[%clk 0:01:14]} 1-0


[Site "https://www.chess.com"]

[Event "Titled Tuesday Blitz April 05 Early 2022"]
[White "Bintang, Rasyid A. Hidayat"]
[Black "De Arruda, Leandro Formes"]
[WhiteFideId "7105355"]
[BlackFideId "22722009"]
[WhiteElo "2383"]
[BlackElo "1852"]
[Result "1-0"]
[Round "03"]
[TimeControl "180+1"]
[Date "2022.04.05"]
[WhiteClock "0:00:45"]
[BlackClock "0:00:01"]

1. d4 {[%clk 0:02:55]}  d5 {[%clk 0:02:35]} 2. Bf4 {[%clk 0:02:54]}  e6 {[%clk 0:02:34]} 3. e3 {[%clk 0:02:54]}  Nf6 {[%clk 0:02:31]} 4. Nd2 {[%clk 0:02:53]}  Bd6 {[%clk 0:02:32]} 5. Bg3 {[%clk 0:02:53]}  O-O {[%clk 0:02:32]} 6. Ngf3 {[%clk 0:02:52]}  Ne4 {[%clk 0:02:30]} 7. Nxe4 {[%clk 0:02:51]}  dxe4 {[%clk 0:02:31]} 8. Nd2 {[%clk 0:02:51]}  f5 {[%clk 0:02:31]} 9. Bc4 {[%clk 0:02:48]}  Kh8 {[%clk 0:02:30]} 10. O-O {[%clk 0:02:47]}  Nc6 {[%clk 0:02:29]} 11. Bb3 {[%clk 0:02:46]}  Na5 {[%clk 0:02:28]} 12. Nc4 {[%clk 0:02:43]}  Nxb3 {[%clk 0:02:26]} 13. axb3 {[%clk 0:02:44]}  b6 {[%clk 0:02:18]} 14. d5 {[%clk 0:02:39]}  Bxg3 {[%clk 0:02:07]} 15. hxg3 {[%clk 0:02:38]}  exd5 {[%clk 0:02:05]} 16. Ne5 {[%clk 0:02:37]}  Be6 {[%clk 0:01:54]} 17. Qh5 {[%clk 0:02:34]}  Qe8 {[%clk 0:01:47]} 18. Qh4 {[%clk 0:02:29]}  a5 {[%clk 0:01:37]} 19. Rfd1 {[%clk 0:02:26]}  Rd8 {[%clk 0:01:33]} 20. Rd2 {[%clk 0:02:23]}  Kg8 {[%clk 0:01:31]} 21. Rad1 {[%clk 0:02:21]}  Rd6 {[%clk 0:01:10]} 22. c4 {[%clk 0:02:15]}  dxc4 {[%clk 0:00:53]} 23. Rxd6 {[%clk 0:02:15]}  cxd6 {[%clk 0:00:53]} 24. Rxd6 {[%clk 0:02:16]}  cxb3 {[%clk 0:00:48]} 25. Rxb6 {[%clk 0:02:15]}  Rf6 {[%clk 0:00:29]} 26. Nc6 {[%clk 0:02:04]}  Bc8 {[%clk 0:00:11]} 27. Qf4 {[%clk 0:01:33]}  Rxc6 {[%clk 0:00:10]} 28. Rxc6 {[%clk 0:01:30]}  Qxc6 {[%clk 0:00:11]} 29. Qb8 {[%clk 0:01:30]}  Qb7 {[%clk 0:00:10]} 30. Qe5 {[%clk 0:01:29]}  Kf7 {[%clk 0:00:07]} 31. Qxa5 {[%clk 0:01:29]}  Qd7 {[%clk 0:00:06]} 32. Kh2 {[%clk 0:01:25]}  h6 {[%clk 0:00:06]} 33. Qc3 {[%clk 0:01:25]}  Qe6 {[%clk 0:00:06]} 34. Qc7+ {[%clk 0:01:24]}  Bd7 {[%clk 0:00:07]} 35. Qf4 {[%clk 0:01:22]}  h5 {[%clk 0:00:08]} 36. Qg5 {[%clk 0:01:20]}  Qg6 {[%clk 0:00:06]} 37. Qd8 {[%clk 0:01:18]}  Qe6 {[%clk 0:00:05]} 38. Qh8 {[%clk 0:01:18]}  Kg6 {[%clk 0:00:05]} 39. Qb8 {[%clk 0:01:12]}  Qe8 {[%clk 0:00:05]} 40. Qxb3 {[%clk 0:01:10]}  Qe6 {[%clk 0:00:06]} 41. Qc3 {[%clk 0:01:08]}  Qf6 {[%clk 0:00:05]} 42. Qc7 {[%clk 0:01:06]}  Be6 {[%clk 0:00:06]} 43. b4 {[%clk 0:01:04]}  h4 {[%clk 0:00:05]} 44. b5 {[%clk 0:01:01]}  hxg3+ {[%clk 0:00:05]} 45. fxg3 {[%clk 0:01:00]}  Kg5 {[%clk 0:00:04]} 46. b6 {[%clk 0:00:56]}  Qh6+ {[%clk 0:00:04]} 47. Kg1 {[%clk 0:00:56]}  Qh5 {[%clk 0:00:04]} 48. Qf4+ {[%clk 0:00:51]}  Kf6 {[%clk 0:00:04]} 49. g4 {[%clk 0:00:48]}  Qh4 {[%clk 0:00:01]} 50. g5+ {[%clk 0:00:45]}  Kg6 {[%clk 0:00:01]} 51. Qxh4 {[%clk 0:00:45]} 1-0


[Site "https://www.chess.com"]

[Event "Titled Tuesday Blitz April 05 Early 2022"]
[White "Buscar, Michael"]
[Black "Artemenko, Oleg"]
[WhiteFideId "2603616"]
[BlackFideId "14201798"]
[WhiteElo "2010"]
[BlackElo "2287"]
[Result "0-1"]
[Round "03"]
[TimeControl "180+1"]
[Date "2022.04.05"]
[WhiteClock "0:00:19"]
[BlackClock "0:02:12"]

1. Nf3 {[%clk 0:03:00]}  Nf6 {[%clk 0:02:58]} 2. g3 {[%clk 0:02:59]}  d5 {[%clk 0:02:58]} 3. Bg2 {[%clk 0:02:59]}  c6 {[%clk 0:02:59]} 4. O-O {[%clk 0:02:58]}  Bg4 {[%clk 0:03:00]} 5. d4 {[%clk 0:02:58]}  Nbd7 {[%clk 0:02:59]} 6. c4 {[%clk 0:02:59]}  e6 {[%clk 0:02:59]} 7. b3 {[%clk 0:02:59]}  Bd6 {[%clk 0:02:59]} 8. Bb2 {[%clk 0:02:59]}  O-O {[%clk 0:02:59]} 9. Nbd2 {[%clk 0:02:59]}  Re8 {[%clk 0:03:00]} 10. Re1 {[%clk 0:03:00]}  Qc7 {[%clk 0:03:00]} 11. Rc1 {[%clk 0:02:46]}  Rad8 {[%clk 0:02:59]} 12. Qc2 {[%clk 0:02:46]}  Qa5 {[%clk 0:02:57]} 13. Qb1 {[%clk 0:02:45]}  Ba3 {[%clk 0:02:56]} 14. Bc3 {[%clk 0:02:39]}  Qa6 {[%clk 0:02:54]} 15. Rcd1 {[%clk 0:02:37]}  Bf5 {[%clk 0:02:52]} 16. Qa1 {[%clk 0:02:33]}  Bc2 {[%clk 0:02:52]} 17. c5 {[%clk 0:02:20]}  b6 {[%clk 0:02:46]} 18. Bf1 {[%clk 0:01:56]}  Bxd1 {[%clk 0:02:45]} 19. Rxd1 {[%clk 0:01:46]}  bxc5 {[%clk 0:02:44]} 20. dxc5 {[%clk 0:01:44]}  Bxc5 {[%clk 0:02:37]} 21. e4 {[%clk 0:01:43]}  Qb7 {[%clk 0:02:37]} 22. e5 {[%clk 0:01:27]}  Ng4 {[%clk 0:02:36]} 23. Bd4 {[%clk 0:01:21]}  Qb6 {[%clk 0:02:30]} 24. Bd3 {[%clk 0:00:40]}  Bxd4 {[%clk 0:02:27]} 25. Nxd4 {[%clk 0:00:39]}  Ngxe5 {[%clk 0:02:25]} 26. Bc2 {[%clk 0:00:34]}  c5 {[%clk 0:02:23]} 27. Ne2 {[%clk 0:00:30]}  Nc6 {[%clk 0:02:22]} 28. Nf3 {[%clk 0:00:28]}  Nf6 {[%clk 0:02:17]} 29. Nf4 {[%clk 0:00:24]}  e5 {[%clk 0:02:16]} 30. Nh3 {[%clk 0:00:19]}  e4 {[%clk 0:02:14]} 31. Nfg5 {[%clk 0:00:19]}  h6 {[%clk 0:02:12]} 0-1


[Site "https://www.chess.com"]